bitfinex-derivatives/quotes_ETHF0:USTF0_20260305
["timestamp","ask_amount","ask_price","bid_price","bid_amount"]
[1772680966109,0.95127563,2118.1,2117.4,7.41210901]
[1772680966110,0.36556563,2118.1,2117.7,1.01072304]
[1772680966311,2.78501514,2118.0,2117.7,1.01072304]
[1772680966508,6.74595648,2118.0,2117.7,1.01072304]
[1772680966711,2.78501514,2118.0,2117.7,1.01072304]
[1772680967003,3.96094134,2117.9,2117.7,1.01072304]
[1772680967211,3.46343134,2117.9,2117.7,1.01072304]
[1772680967409,1.77138567,2117.9,2117.7,1.01072304]
[1772680967704,0.73388567,2117.9,2117.7,1.01072304]
[1772680968505,2.78501514,2118.0,2117.7,1.01072304]
[1772680969510,3.88437391,2118.0,2117.7,1.01072304]
[1772680969710,1.09935877,2118.0,2117.7,1.01072304]
[1772680970412,3.88437391,2118.0,2117.6,1.33427173]
[1772680970612,3.88437391,2118.0,2117.7,9.91622173]
[1772680970814,2.78501514,2118.0,2117.8,1.09822173]
[1772680971113,2.02886894,2118.0,2117.8,1.09822173]
[1772680971313,1.51667894,2118.0,2117.8,1.09822173]
[1772680971610,1.09935877,2118.3,2117.8,1.09822173]
[1772680972912,1.09935877,2118.1,2117.5,2.56556631]
[1772680973112,1.09935877,2118.1,2117.3,1.09822173]
[1772680973321,1.09935877,2117.9,2117.3,1.09822173]
[1772680973514,1.09935877,2118.2,2117.5,1.09822173]
[1772680973720,1.09935877,2118.2,2117.4,0.23607]
[1772680973721,1.09935877,2118.2,2117.7,1.09822173]
[1772680974919,1.09935877,2118.2,2117.8,1.33425173]
[1772680974920,0.99377894,2118.1,2117.8,1.33425173]
[1772680975319,0.00558068,2118.5,2117.8,1.33425173]
[1772680975526,1.09935877,2118.4,2117.8,1.33425173]
[1772680976327,1.09935877,2118.4,2117.6,8.837]
[1772680976328,1.09935877,2118.4,2117.7,1.09822173]
[1772680976524,1.09935877,2118.4,2117.6,9.95422173]
[1772680976727,1.09935877,2118.4,2117.7,1.09822173]
[1772680977524,1.09935877,2118.4,2117.7,1.33425173]
[1772680977726,0.00558068,2118.5,2117.7,1.33425173]
[1772680978020,0.00558068,2118.5,2117.7,1.09822173]
[1772680978229,1.09935877,2118.7,2118.2,1.09822173]
[1772680978624,1.09935877,2119.7,2118.2,1.09822173]
[1772680979230,1.10373901,2119.7,2118.2,1.10296987]
[1772680980328,1.10373901,2119.7,2118.2,0.00474814]
[1772680980530,1.10373901,2119.7,2118.2,8.88974814]
[1772680983034,1.09935877,2119.5,2118.2,0.00474814]
[1772680984032,1.09935877,2119.4,2117.9,1.09822173]
[1772680985235,1.09935877,2119.4,2117.9,1.09905427]
[1772680987634,1.09935877,2119.3,2117.9,1.09905427]
[1772680987840,1.09935877,2119.1,2117.9,1.09905427]
[1772680988239,1.09935877,2119.0,2117.9,1.09905427]
[1772680992550,1.09935877,2119.0,2118.1,1.09822173]
[1772680994749,1.09935877,2119.0,2118.0,0.23601]
[1772680995050,1.09935877,2119.0,2118.0,1.33423173]
[1772681001858,1.14117569,2119.1,2118.4,1.37535637]
[1772681002360,5.08413262,2119.3,2118.6,1.37535637]
[1772681002562,1.14081371,2119.2,2118.6,1.37535637]
[1772681005563,3.94331891,2119.3,2118.6,1.37535637]
[1772681005764,1.10915935,2119.2,2118.6,1.37535637]
[1772681007663,1.10915935,2119.2,2118.5,1.58565541]
[1772681007964,0.94265279,2119.0,2118.1,1.58569541]
[1772681009466,0.9346698,2118.9,2118.1,1.34970541]
[1772681010759,0.91384763,2118.7,2117.9,1.35053795]
[1772681010962,0.91384763,2118.6,2117.9,1.35053795]
[1772681011267,0.91384763,2118.6,2117.9,0.00083254]
[1772681011464,0.9138166,2118.5,2117.9,1.35053795]
[1772681014069,0.89671736,2118.7,2117.9,1.35053795]
[1772681019574,0.8569237,2118.8,2117.9,1.35053795]
[1772681020071,0.8569237,2118.8,2117.9,0.7745837]
[1772681021573,1.23920816,2118.7,2117.9,0.7745837]
[1772681026678,1.23920816,2118.7,2117.7,9.11704]
[1772681026679,1.23920816,2118.8,2118.1,1.34970541]
[1772681026972,1.23920816,2118.8,2117.7,1.34970541]
[1772681027376,1.23920816,2118.8,2117.9,1.34970541]
[1772681030277,1.18369798,2118.7,2117.9,1.34970541]
[1772681030472,1.18369798,2118.7,2117.6,1.19729769]
[1772681030676,1.18369798,2118.6,2117.6,1.19729769]
[1772681032079,1.18369798,2118.6,2117.8,1.19729769]
[1772681034285,5.89318458,2118.9,2118.0,1.19729769]
[1772681034286,1.18369798,2118.8,2118.0,1.19729769]
[1772681034584,1.18369798,2118.7,2117.6,1.19729769]
[1772681034784,1.18369798,2118.6,2117.6,1.19729769]
[1772681035884,1.18369798,2118.3,2117.2,1.19729769]
[1772681038983,1.18369798,2118.2,2117.2,1.19729769]
[1772681039192,1.18369798,2118.0,2117.2,1.19729769]
[1772681042988,1.18369798,2118.0,2117.0,0.23611]
[1772681043197,1.18369798,2118.0,2117.1,1.19729769]
[1772681045100,1.18369798,2118.0,2117.3,1.19729769]
[1772681046393,0.00464384,2118.2,2117.4,0.23607]
[1772681046593,1.18834182,2118.2,2117.5,1.19729769]
[1772681047501,0.00464384,2118.2,2117.5,1.19729769]
[1772681048300,0.00464384,2118.2,2117.7,1.19729769]
[1772681048604,1.18369798,2118.6,2117.9,1.19729769]
[1772681049607,1.18739064,2118.6,2117.9,1.2017738]
[1772681055104,0.00369266,2118.6,2117.9,1.2017738]
[1772681055312,0.00369266,2118.6,2117.9,1.4377838]
[1772681057104,1.18739064,2118.6,2117.9,1.4377838]
[1772681058302,1.18739064,2118.6,2117.9,1.2017738]
[1772681058506,2.85567661,2118.4,2117.9,1.2017738]
[1772681058710,1.11737857,2118.3,2117.9,1.2017738]
[1772681059510,1.11737857,2118.1,2117.7,1.1232296]
[1772681059911,1.11737857,2118.3,2117.7,1.1232296]
[1772681060108,2.7893572,2118.3,2117.7,1.1232296]
[1772681060510,1.11737857,2118.3,2117.7,1.1232296]
[1772681061116,1.11737857,2118.5,2117.7,1.1232296]
[1772681074227,1.06224764,2118.4,2117.7,1.1232296]
[1772681075228,5.00556655,2118.5,2117.7,1.1232296]
[1772681075422,1.06224764,2118.4,2117.7,1.1232296]
[1772681076730,3.94331891,2118.5,2117.9,1.03054998]
[1772681076926,5.00556655,2118.5,2117.9,1.03054998]
[1772681082432,6.67736037,2118.5,2117.9,1.03054998]
[1772681083529,3.94331891,2118.5,2118.0,0.23601]
[1772681083828,0.00369266,2118.6,2118.1,1.03054998]
[1772681084534,1.05126422,2118.6,2118.1,1.03054998]
[1772681086132,1.03293766,2118.4,2118.0,1.26655998]
[1772681086932,2.69797469,2118.5,2118.0,1.26655998]
[1772681087131,0.00369266,2118.6,2118.0,1.26655998]
[1772681093233,2.66345807,2118.3,2118.0,1.03054998]
[1772681093436,0.00369266,2118.6,2117.8,0.97409029]
[1772681093437,1.67179382,2118.1,2117.8,0.97409029]
[1772681095343,1.67179382,2118.1,2117.5,4.19730835]
[1772681095344,2.66345807,2118.1,2117.5,4.19730835]
[1772681095540,0.99166425,2118.0,2117.6,0.97409029]
[1772681095938,1.67179382,2118.1,2117.6,0.97409029]
[1772681095939,2.66345807,2118.1,2117.6,0.97409029]
[1772681096543,0.99166425,2118.1,2117.6,0.97409029]
[1772681097842,0.10254415,2117.6,2116.2,0.97409029]
[1772681098049,2.38228056,2117.2,2116.2,0.97409029]
[1772681098250,0.71006804,2117.2,2116.2,0.97409029]
[1772681101351,0.99166425,2117.0,2116.2,0.97409029]
[1772681101552,0.99753563,2117.0,2116.2,0.97409029]
[1772681102939,2.66974815,2117.0,2116.2,0.97409029]
[1772681103145,0.97890869,2116.9,2116.2,0.97409029]
[1772681104450,0.00587138,2117.0,2116.2,0.97409029]
[1772681104949,0.97451711,2117.0,2116.2,0.97409029]
[1772681106252,0.96451601,2116.9,2116.2,0.97409029]
[1772681108351,0.95831154,2117.3,2116.4,0.97409029]
[1772681108750,0.95614048,2117.1,2116.4,0.97409029]
[1772681109550,0.96223031,2117.1,2116.4,0.97969933]
[1772681111266,0.95764519,2117.7,2116.7,0.97409029]
[1772681112156,0.96297768,2117.7,2116.7,1.21024029]
[1772681112958,0.99166425,2117.5,2116.7,1.21024029]
[1772681113761,0.00533249,2117.7,2116.5,0.97409029]
[1772681113762,0.99166425,2117.3,2116.5,0.97409029]
[1772681116258,0.99166425,2117.3,2116.4,0.97969933]
[1772681116463,1.67221252,2117.4,2116.4,0.00560904]
[1772681116464,0.99166425,2116.9,2116.4,0.00560904]
[1772681116662,0.99166425,2116.9,2116.2,0.97409029]
[1772681117859,0.99166425,2116.9,2116.2,0.97855345]
[1772681119667,0.87815413,2117.1,2116.2,0.97855345]
[1772681120959,0.89226226,2117.3,2116.4,1.21523138]
[1772681121158,6.56645228,2117.2,2116.4,1.21523138]
[1772681121360,0.89216545,2117.2,2116.4,1.21523138]
[1772681121566,5.6748775,2117.1,2116.4,1.21523138]
[1772681121770,0.89216545,2117.2,2116.4,1.21523138]
[1772681122157,0.00533249,2117.7,2117.0,3.34442504]
[1772681122368,1.27204321,2118.0,2117.3,1.21523138]
[1772681122567,1.27204321,2117.8,2117.3,1.21523138]
[1772681123360,1.2760723,2117.8,2117.3,1.21523138]
[1772681124361,1.27204321,2117.7,2117.3,1.21523138]
[1772681125770,1.27204321,2117.7,2116.8,1.21523138]
[1772681128375,1.27204321,2117.7,2117.0,1.43551695]
[1772681134583,0.00402909,2117.8,2117.2,1.43551695]
[1772681134884,5.58061298,2117.8,2117.2,1.43551695]
[1772681135087,0.87735728,2117.7,2117.2,1.43551695]
[1772681136084,2.21535057,2117.7,2117.2,1.43551695]
[1772681136481,0.87735728,2117.7,2117.2,1.43551695]
[1772681136686,0.00402909,2117.8,2117.2,1.43551695]
[1772681137687,5.58038956,2117.8,2117.2,1.43551695]
[1772681137887,6.45774684,2117.8,2117.2,1.43551695]
[1772681138088,0.00402909,2117.8,2117.2,1.43551695]
[1772681138283,6.83568753,2117.8,2117.2,1.43551695]
[1772681138483,2.21937966,2117.8,2117.2,1.43551695]
[1772681140692,0.87735728,2117.7,2117.2,1.43551695]
[1772681140992,1.34202238,2117.8,2117.2,1.43551695]
[1772681141192,0.87735728,2117.7,2117.2,1.43551695]
[1772681141686,0.00402909,2117.8,2117.4,1.43551695]
[1772681143191,1.34202238,2117.8,2117.4,1.43551695]
[1772681143890,0.00402909,2117.8,2117.4,1.43551695]
[1772681144592,1.34202238,2117.8,2117.4,1.43551695]
[1772681145489,1.33799329,2118.3,2117.6,1.43551695]
[1772681145691,1.33799329,2118.5,2118.0,1.43551695]
[1772681146591,1.34178823,2118.5,2118.0,1.44129953]
[1772681149193,1.34178823,2118.5,2118.0,1.28566388]
[1772681150192,1.34178823,2118.5,2117.5,1.2798813]
[1772681150393,1.33366935,2118.4,2117.5,1.2798813]
[1772681151195,1.33366935,2118.4,2117.5,1.28408777]
[1772681152499,1.33366935,2118.4,2117.7,1.2798813]
[1772681156600,1.33366935,2118.4,2117.8,1.2798813]
[1772681161399,1.33366935,2118.2,2117.7,1.67176938]
[1772681161598,1.33366935,2118.1,2117.6,1.5159313]
[1772681162204,1.33366935,2118.3,2117.8,1.5159113]
[1772681164404,1.33746429,2118.5,2117.8,1.5159113]
[1772681164609,6.73354878,2118.4,2117.8,1.5159113]
[1772681164810,1.33366935,2118.4,2117.8,1.5159113]
[1772681166209,1.33366935,2118.4,2117.9,1.67176938]
[1772681166511,1.33366935,2118.4,2118.0,1.2798813]
[1772681166707,1.33746429,2118.5,2118.0,1.2798813]
[1772681167008,5.40258607,2118.4,2118.0,1.2798813]
[1772681167213,1.33366935,2118.4,2118.0,1.2798813]
[1772681169710,0.00379494,2118.5,2118.1,0.236]
[1772681169911,1.33366935,2118.9,2118.4,1.67176938]
[1772681170112,1.33366935,2118.9,2118.3,0.23597]
[1772681170113,1.33366935,2119.3,2118.7,1.2798813]
[1772681170911,1.33366935,2119.2,2118.7,1.2798813]
[1772681171412,1.33366935,2119.2,2118.5,1.2798813]
[1772681173825,1.33366935,2118.9,2118.3,1.5158513]
[1772681179130,1.364917,2118.7,2118.3,1.5158513]
[1772681179524,1.364917,2118.7,2118.3,0.23597]
[1772681180124,1.364917,2118.7,2118.2,1.35061318]
[1772681181922,1.364917,2118.7,2118.1,1.35061318]
[1772681182427,1.67176938,2118.8,2118.1,1.35061318]
[1772681182634,1.364917,2118.9,2118.3,1.35061318]
[1772681187237,1.32323099,2118.5,2117.9,1.26934135]
[1772681195435,1.32323099,2118.3,2117.9,1.26934135]
[1772681195635,1.32323099,2118.3,2117.8,1.26934135]
[1772681196636,3.94808935,2118.7,2118.0,1.67176938]
[1772681196840,1.32323099,2118.5,2118.1,1.26934135]
[1772681202346,1.32323099,2118.4,2117.7,1.26934135]
[1772681206553,1.32323099,2118.4,2117.9,1.26934135]
[1772681208454,1.32323099,2118.6,2118.1,1.26934135]
[1772681209054,1.32323099,2118.6,2117.9,1.28973613]
[1772681213456,1.32323099,2118.6,2118.1,1.28973613]
[1772681213851,1.22751049,2119.0,2118.6,1.28973613]
[1772681214353,1.22751049,2119.2,2118.8,1.28973613]
[1772681217454,1.22751049,2119.2,2118.5,1.28973613]
[1772681223562,1.22751049,2119.2,2118.7,1.28973613]
[1772681224859,1.22751049,2119.2,2118.6,1.52567613]
[1772681225368,1.22751049,2119.2,2118.6,1.28973613]
[1772681230172,1.22751049,2119.1,2118.3,1.28973613]
[1772681237982,1.22751049,2119.1,2118.0,0.236]
[1772681238281,1.22751049,2118.9,2118.1,1.28973613]
[1772681242082,1.09342043,2118.8,2118.1,1.28973613]
[1772681242675,1.09342043,2118.8,2117.9,1.16290016]
[1772681242884,1.09342043,2118.4,2117.9,1.16290016]
[1772681244679,1.09342043,2118.4,2117.7,1.16290016]
[1772681244879,1.09342043,2118.1,2117.5,5.10966093]
[1772681245185,1.09342043,2118.1,2117.5,1.16710663]
[1772681245984,1.09342043,2118.3,2117.5,1.16710663]
[1772681246287,1.09342043,2118.3,2117.7,1.15827831]
[1772681249283,1.07439904,2118.7,2117.7,1.15827831]
[1772681249478,1.07439904,2118.5,2117.9,1.15827831]
[1772681250383,1.07439904,2118.4,2117.6,1.15827831]
[1772681254687,1.07439904,2118.4,2117.5,0.00420647]
[1772681254688,1.07439904,2118.2,2117.5,1.16248478]
[1772681255092,1.07439904,2118.2,2117.5,0.00420647]
[1772681255687,1.07439904,2118.2,2117.5,1.16248478]
[1772681258994,1.07439904,2117.9,2117.1,1.15827831]
[1772681259992,1.07439904,2117.9,2117.1,1.16422386]
[1772681271295,1.07930904,2117.7,2117.0,1.03733628]
[1772681271500,1.07930904,2117.7,2116.9,1.03733628]
[1772681272503,1.07930904,2117.5,2116.9,0.00374182]
[1772681273104,1.07930904,2117.5,2116.9,1.0410781]
[1772681273897,1.07930904,2117.5,2116.9,0.00374182]
[1772681276601,1.07930904,2117.2,2116.7,1.03733628]
[1772681278000,1.07930904,2117.0,2116.5,1.03733628]
[1772681280208,1.07930904,2116.8,2116.3,1.03733628]
[1772681280600,1.07930904,2116.6,2116.1,1.03733628]
[1772681281306,1.07930904,2116.6,2116.0,1.27356628]
[1772681281700,1.07930904,2116.2,2115.7,1.03733628]
[1772681281904,0.00464735,2116.2,2115.7,1.03733628]
[1772681282102,0.00464735,2116.2,2115.8,1.03733628]
[1772681282299,1.08395639,2116.2,2115.8,1.03733628]
[1772681283108,0.00464735,2116.2,2115.8,1.03733628]
[1772681283307,1e-08,2116.2,2115.8,1.03733628]
[1772681283508,1.07930904,2116.4,2115.8,1.03733628]
[1772681284505,1.07930904,2116.7,2116.0,1.03733628]
[1772681284810,1.07930904,2116.8,2116.3,1.03733628]
[1772681285010,1.07930904,2116.6,2116.1,1.03733628]
[1772681285610,1.08402668,2116.6,2115.9,1.27357628]
[1772681286012,1.07930904,2116.4,2115.9,0.23624]
[1772681286210,1.07930904,2116.4,2115.7,1.03733628]
[1772681287211,1.07930904,2116.4,2115.9,1.03733628]
[1772681288513,1.07930904,2116.4,2115.7,1.03733628]
[1772681290913,1.07930904,2116.4,2115.6,1.67383835]
[1772681291309,0.00471764,2116.6,2115.6,2.71117463]
[1772681291310,1.07930904,2116.2,2115.6,2.71117463]
[1772681291509,1.07930904,2116.2,2115.7,1.03733628]
[1772681293512,1.07930904,2116.2,2115.9,1.03733628]
[1772681293813,1.07930904,2116.4,2115.9,1.03733628]
[1772681295516,1.07930904,2116.4,2116.0,1.03733628]
[1772681297216,1.07930904,2116.4,2115.8,1.03733628]
[1772681297516,1.07930904,2116.4,2115.7,1.67383835]
[1772681297719,1.07930904,2116.4,2115.5,2.7168003]
[1772681297921,1.07930904,2116.2,2115.5,2.7168003]
[1772681298130,1.07930904,2116.2,2115.6,1.03733628]
[1772681299219,1.07930904,2116.2,2115.8,0.93043267]
[1772681299419,0.98626505,2116.4,2115.8,0.93043267]
[1772681299624,0.98626505,2116.4,2116.0,0.93043267]
[1772681301531,0.98626505,2116.4,2115.8,0.93043267]
[1772681302829,0.98626505,2116.4,2116.0,0.93043267]
[1772681303533,0.99098269,2116.6,2116.0,0.93043267]
[1772681304434,0.99098269,2116.6,2115.7,0.23625]
[1772681304435,0.99098269,2116.6,2115.8,0.93043267]
[1772681304735,0.98626505,2116.2,2115.6,0.93043267]
[1772681309736,0.96383625,2116.0,2115.5,0.92766685]
[1772681309938,0.96383625,2115.8,2115.2,1.15835118]
[1772681310237,0.387882,2115.8,2115.2,1.15835118]
[1772681310437,0.96383625,2115.4,2114.8,0.92204118]
[1772681310839,0.96383625,2115.4,2114.8,0.92808514]
[1772681311142,0.96383625,2115.4,2115.0,0.92204118]
[1772681311741,0.96383625,2115.4,2114.9,0.92204118]
[1772681311940,0.96383625,2115.2,2114.8,0.92808514]
[1772681312433,5.6219277,2115.5,2114.8,0.92808514]
[1772681312637,6.37547321,2115.4,2114.8,0.92808514]
[1772681312843,6.37547321,2115.3,2114.8,0.92808514]
[1772681313138,0.96383625,2115.3,2114.8,0.92808514]
[1772681315340,0.96383625,2115.9,2115.3,0.92204118]
[1772681315639,0.96383625,2115.7,2115.2,0.92204118]
[1772681315837,1.67383835,2116.0,2114.9,0.92204118]
[1772681315838,0.96383625,2115.5,2114.9,0.92204118]
[1772681323142,0.96383625,2115.3,2114.9,0.92204118]
[1772681323347,0.96383625,2115.1,2114.8,0.00604396]
[1772681323544,0.96883333,2115.1,2114.7,0.92204118]
[1772681323946,0.00499708,2115.1,2114.7,0.92204118]
[1772681324541,0.00499708,2115.1,2114.7,0.92502028]
[1772681325147,0.96883333,2115.1,2114.7,0.92502028]
[1772681325352,0.96883333,2115.1,2114.7,0.59417304]
[1772681325652,0.96383625,2115.0,2114.6,0.92204118]
[1772681326151,0.96383625,2115.0,2114.4,1.67383835]
[1772681326152,0.96383625,2115.0,2114.5,0.84954935]
[1772681326552,0.96383625,2115.3,2114.7,0.84954935]
[1772681326749,5.48805022,2115.2,2114.7,0.84954935]
[1772681327542,0.96383625,2115.3,2114.9,0.92204118]
[1772681327845,0.96383625,2115.6,2115.1,0.92204118]
[1772681328049,0.98169468,2115.8,2115.3,0.92204118]
[1772681328851,0.98545153,2115.8,2115.3,0.92204118]
[1772681330156,0.00375685,2115.8,2115.3,0.92204118]
[1772681330648,0.99198221,2115.8,2115.3,0.92204118]
[1772681331249,0.98838764,2115.9,2115.3,0.92204118]
[1772681332454,0.99230254,2115.9,2115.3,0.92204118]
[1772681334651,0.99230254,2115.9,2115.0,1.91016835]
[1772681334652,0.99143548,2115.5,2115.0,0.23633]
[1772681334856,0.99143548,2115.5,2115.0,0.37701539]
[1772681335056,0.99143548,2115.5,2115.1,0.14529523]
[1772681338463,0.99143548,2115.5,2114.7,0.15566276]
[1772681340164,0.99525697,2115.3,2114.7,0.15566276]
[1772681341371,0.99613157,2115.1,2114.7,0.00499708]
[1772681341669,0.99613157,2115.1,2114.6,0.39769711]
[1772681341965,0.99613157,2115.1,2114.6,0.16130711]
[1772681342264,0.99613157,2115.1,2114.4,0.16517842]
[1772681342667,0.99613157,2115.1,2114.4,0.17112676]
[1772681342867,3.94808935,2115.3,2114.2,0.40288083]
[1772681342868,0.99755537,2114.9,2114.2,0.40288083]
[1772681343070,0.99755537,2114.9,2114.3,0.16660211]
[1772681343460,0.99747973,2114.5,2113.6,0.16660211]
[1772681343763,0.99747973,2114.1,2113.4,0.16660211]
[1772681343962,0.99747973,2113.9,2113.0,0.17068872]
[1772681344263,0.99747973,2113.7,2113.0,0.17068872]
[1772681344462,0.99747973,2113.7,2112.7,1.91283361]
[1772681344463,0.99743912,2113.5,2112.7,0.40736993]
[1772681344670,0.71082484,2113.4,2112.8,0.17076993]
[1772681344964,0.71082484,2113.3,2112.8,0.17076993]
[1772681345267,0.71082484,2113.2,2112.8,0.17076993]
[1772681345469,0.99706859,2113.4,2112.8,0.17076993]
[1772681345669,0.6808653,2113.3,2112.8,0.17076993]
[1772681345966,0.99706859,2113.4,2112.8,0.17076993]
[1772681346164,0.99132879,2114.0,2113.1,0.20661178]
[1772681346466,0.99132879,2113.8,2113.1,0.20661178]
[1772681346768,0.99132879,2113.6,2113.0,0.23657]
[1772681347175,0.99132879,2113.6,2112.9,0.20661178]
[1772681347361,1.66033702,2113.5,2112.9,0.20661178]
[1772681347567,0.99125914,2113.3,2112.6,0.21007805]
[1772681348266,0.99125914,2113.3,2112.8,0.20952085]
[1772681348668,0.99125914,2113.3,2112.7,0.2366]
[1772681348873,0.99125914,2113.3,2112.7,0.44612085]
[1772681349376,0.99125914,2113.3,2112.5,0.21278845]
[1772681350773,0.99125914,2113.3,2112.7,0.20740404]
[1772681350974,0.99125914,2113.3,2112.8,0.23659]
[1772681351169,0.99125914,2113.3,2112.9,0.21036537]
[1772681352074,0.97058172,2114.0,2112.9,0.21036537]
[1772681352275,0.97058172,2113.8,2112.9,0.21036537]
[1772681352475,0.97058172,2113.6,2112.9,0.21036537]
[1772681354375,0.97058172,2113.6,2112.8,0.23659]
[1772681356177,0.97058172,2113.6,2112.8,1.18495882]
[1772681358986,0.97058172,2113.6,2112.5,8.676]
[1772681358987,1.06290137,2114.0,2113.3,1.13081001]
[1772681359987,1.06290137,2114.0,2113.2,1.36735001]
[1772681361384,1.06290137,2114.0,2113.0,1.13081001]
[1772681362081,1.06290137,2114.0,2112.7,0.23659]
[1772681362082,1.06290137,2114.0,2113.2,1.13081001]
[1772681362685,1.06290137,2114.0,2113.5,1.36732001]
[1772681363789,0.00581737,2114.1,2113.5,1.36732001]
[1772681363990,1.06871874,2114.1,2113.5,1.36732001]
[1772681369288,0.65543501,2114.0,2113.5,1.36732001]
[1772681369594,1.11726095,2114.6,2113.5,1.36732001]
[1772681370292,1.11726095,2114.4,2113.5,1.36732001]
[1772681370495,1.1231995,2114.4,2113.5,1.37222498]
[1772681371789,1.11726095,2114.2,2113.5,0.24141497]
[1772681371989,1.11726095,2114.2,2113.5,1.4015593]
[1772681378100,1.1231995,2114.4,2113.5,1.4015593]
[1772681378303,1.11726095,2114.2,2113.5,1.4015593]
[1772681381396,1.73213812,2114.1,2113.5,1.4015593]
[1772681381603,1.73213812,2114.0,2113.5,1.4015593]
[1772681381802,0.61487717,2113.9,2113.5,1.4015593]
[1772681382003,1.11726095,2114.0,2113.5,1.4015593]
[1772681382201,0.61486386,2113.9,2113.5,1.4015593]
[1772681382401,1.11726095,2114.0,2113.5,1.4015593]
[1772681382601,0.6149435,2113.9,2113.5,1.4015593]
[1772681382800,1.11726095,2114.0,2113.5,1.4015593]
[1772681382997,8.56e-06,2113.9,2113.5,1.4015593]
[1772681383202,1.11726095,2114.3,2113.5,1.4015593]
[1772681384100,0.00593855,2114.4,2113.5,1.4015593]
[1772681384307,0.00593855,2114.4,2113.9,1.16014433]
[1772681385006,1.1231995,2114.4,2113.9,1.16014433]
[1772681385203,0.00593855,2114.4,2114.1,1.16014433]
[1772681385407,1.11726095,2114.7,2114.1,1.16014433]
[1772681385602,1.11726095,2114.7,2114.3,1.16014433]
[1772681385906,1.11726095,2115.0,2114.3,1.16014433]
[1772681386108,1.11726095,2114.8,2114.3,1.16014433]
[1772681386308,1.12193709,2114.8,2114.3,1.16014433]
[1772681387307,1.11726095,2115.0,2114.3,1.16014433]
[1772681388006,1.11726095,2114.8,2113.7,1.16014433]
[1772681388204,1.11726095,2114.6,2113.7,1.16014433]
[1772681388408,1.11726095,2114.4,2113.7,1.16014433]
[1772681389208,1.12844076,2114.2,2113.7,1.16014433]
[1772681390106,1.12844076,2114.5,2113.7,1.16014433]
[1772681390310,1.12844076,2114.3,2113.7,1.16014433]
[1772681392009,1.12844076,2114.3,2113.6,0.2365]
[1772681392208,1.12844076,2114.3,2113.6,1.38776424]
[1772681392510,1.12844076,2114.3,2113.6,0.2365]
[1772681392905,1.12844076,2114.3,2113.5,1.15616921]
[1772681393104,5.3729149,2114.2,2113.5,1.15616921]
[1772681393302,1.12844076,2114.1,2113.5,0.00490497]
[1772681393906,1.12844076,2114.1,2113.5,1.15616921]
[1772681394107,1.12844076,2114.5,2113.5,1.15616921]
[1772681394310,1.12844076,2114.3,2113.9,1.15126424]
[1772681394504,1.12844076,2114.3,2113.5,0.00490497]
[1772681394710,1.12844076,2114.3,2113.6,1.15126424]
[1772681395113,0.54394005,2114.2,2113.6,1.15126424]
[1772681395310,1.12844076,2114.3,2113.6,1.15126424]
[1772681395512,1.67241825,2114.2,2113.6,1.15126424]
[1772681395708,1.12844076,2114.2,2113.6,1.15126424]
[1772681395905,1.12844076,2114.5,2113.6,1.15126424]
[1772681396107,1.12844076,2114.3,2113.6,1.15126424]
[1772681396313,0.54398163,2114.2,2113.6,1.15126424]
[1772681396812,1.12844076,2114.5,2114.0,1.15126424]
[1772681397907,1.12844076,2114.5,2113.9,0.23647]
[1772681398112,1.12844076,2114.5,2113.9,1.38773424]
[1772681398508,0.00563082,2114.6,2113.9,1.38773424]
[1772681398713,1.13407158,2114.6,2113.9,1.38773424]
[1772681400310,1.12844076,2115.1,2114.4,1.15126424]
[1772681400511,1.12844076,2115.1,2114.3,0.23641]
[1772681401311,1.13216697,2115.1,2114.3,1.38767424]
[1772681403112,1.13216697,2115.1,2113.9,8.626]
[1772681403113,1.13216697,2115.1,2113.9,1.15126424]
[1772681403308,1.12844076,2115.0,2113.9,1.15126424]
[1772681403708,1.12844076,2114.9,2113.9,1.15126424]
[1772681404015,1.12844076,2114.7,2113.7,1.15126424]
[1772681404215,1.12844076,2114.6,2113.7,1.15126424]
[1772681404611,1.12844076,2114.6,2113.7,1.38775424]
[1772681406720,1.12844076,2114.7,2113.8,1.15126424]
[1772681408120,1.12844076,2114.7,2113.9,1.15126424]
[1772681408714,1.64563318,2114.6,2113.9,1.15126424]
[1772681408915,0.51719242,2114.5,2113.9,1.15126424]
[1772681409111,7.34849477,2115.1,2114.1,1.15126424]
[1772681409112,5.07653011,2114.9,2114.1,1.15126424]
[1772681409315,1.12844076,2115.0,2114.1,1.15126424]
[1772681409518,1.12844076,2114.8,2114.1,1.15126424]
[1772681410116,1.12844076,2114.8,2114.0,2.65267088]
[1772681410117,1.12844076,2114.6,2114.0,10.02671424]
[1772681410316,1.12844076,2114.6,2114.1,1.15126424]
[1772681411316,1.12844076,2114.6,2113.9,1.15126424]
[1772681413019,3.94808935,2115.0,2113.9,1.15126424]
[1772681413020,1.12844076,2114.9,2113.9,1.15126424]
[1772681413220,1.12844076,2114.7,2113.9,1.15126424]
[1772681414620,1.12844076,2114.7,2114.1,1.15126424]
[1772681416222,1.12844076,2114.7,2113.8,2.65269088]
[1772681416418,1.12844076,2114.7,2114.0,1.15126424]
[1772681416622,1.12844076,2114.7,2114.0,9.81126424]
[1772681416921,1.12844076,2114.5,2113.9,2.82904261]
[1772681417120,1.12844076,2114.5,2114.0,1.15126424]
[1772681418926,1.28223283,2114.3,2113.6,2.88172263]
[1772681419126,1.28223283,2114.3,2113.7,1.20394426]
[1772681420124,3.94808935,2114.7,2113.9,1.20394426]
[1772681420125,1.28223283,2114.6,2113.9,1.20394426]
[1772681420325,1.79238583,2114.5,2113.9,1.20394426]
[1772681420515,1.28223283,2114.3,2113.9,1.20394426]
[1772681425126,1.28223283,2114.3,2113.8,2.88172263]
[1772681425724,1.28223283,2114.3,2113.7,11.57272263]
[1772681425926,1.28223283,2114.3,2113.8,1.20394426]
[1772681428825,1.28223283,2114.3,2113.7,1.67777837]
[1772681429032,1.18356811,2114.0,2113.5,0.00490497]
[1772681430632,1.18356811,2114.0,2113.1,1.67777837]
[1772681430633,1.18356811,2113.8,2113.1,1.67777837]
[1772681430832,1.18356811,2113.6,2113.1,2.80583975]
[1772681431234,1.18356811,2113.6,2112.9,10.38677837]
[1772681431431,1.18356811,2113.6,2113.2,1.12806138]
[1772681431633,1.18883545,2113.6,2113.2,1.1321329]
[1772681431834,1.18883545,2113.6,2113.2,0.00407152]
[1772681432732,1.18883545,2113.6,2112.9,10.39577837]
[1772681433139,1.18356811,2113.5,2112.9,8.718]
[1772681433740,1.18356811,2113.5,2112.9,8.72139102]
[1772681433932,1.18356811,2113.5,2112.9,0.00339102]
[1772681434138,1.18356811,2113.3,2112.9,0.00339102]
[1772681434437,1.18356811,2113.3,2112.9,1.1314524]
[1772681434641,1.18356811,2113.3,2112.9,0.00339102]
[1772681436740,1.18356811,2113.3,2112.9,1.1314524]
[1772681437940,1.18356811,2113.3,2112.9,2.80923077]
[1772681438135,1.18356811,2113.3,2112.9,1.68116939]
[1772681438441,1.18356811,2113.3,2112.9,0.00339102]
[1772681438743,1.18356811,2113.3,2112.5,11.55083975]
[1772681438946,1.18356811,2113.3,2112.6,1.12806138]
[1772681439648,1.18356811,2113.3,2112.6,0.00395917]
[1772681441442,1.18356811,2113.3,2112.6,1.13202055]